lending/lending_fUSD_20240830
["ID","MTS","AMOUNT","RATE_DAILY","PERIOD"]
[336665643,1725004256346,-500.0,0.00024657,4]
[336665644,1725004256355,-500.0,0.00024657,4]
[336665645,1725004256364,-500.0,0.00024657,4]
[336665646,1725004256373,-473.45,0.00024657,4]
[336665647,1725004256382,-500.0,0.00024657,4]
[336665648,1725004256391,-212.32417104,0.00024657,4]
[336665649,1725004256400,-500.0,0.00024657,4]
[336665650,1725004256410,-627.05,0.00024657,4]
[336665651,1725004256420,-200.0,0.00024657,2]
[336665652,1725004256428,-500.0,0.00024657,4]
[336665653,1725004256438,-500.0,0.00024657,4]
[336665654,1725004256446,-500.0,0.00024657,4]
[336665655,1725004256455,-500.0,0.00024657,4]
[336665656,1725004256465,-500.0,0.00024657,4]
[336665657,1725004256474,-500.0,0.00024657,4]
[336665658,1725004256483,-500.0,0.00024657,4]
[336665659,1725004256492,-500.0,0.00024657,4]
[336665660,1725004256501,-500.0,0.00024657,4]
[336665661,1725004256510,-500.0,0.00024657,4]
[336665662,1725004256520,-500.0,0.00024657,4]
[336665663,1725004256529,-500.0,0.00024657,4]
[336665664,1725004256538,-500.0,0.00024657,4]
[336665665,1725004256547,-636.65,0.00024657,4]
[336665666,1725004256557,-636.65,0.00024657,4]
[336665667,1725004256566,-500.0,0.00024657,4]
[336665668,1725004256577,-636.65,0.00024657,4]
[336665669,1725004256586,-500.0,0.00024657,4]
[336665670,1725004256595,-636.65,0.00024657,4]
[336665671,1725004256604,-500.0,0.00024657,4]
[336665672,1725004256613,-636.65,0.00024657,4]
[336665673,1725004256622,-162.81,0.00024657,4]
[336665674,1725004256952,-500.0,0.00024657,4]
[336665675,1725004256967,-500.0,0.00024657,4]
[336665676,1725004256977,-334.6,0.00024657,4]
[336665677,1725004256986,-500.0,0.00024657,4]
[336665678,1725004256995,-500.0,0.00024657,4]
[336665679,1725004257005,-500.0,0.00024657,4]
[336665680,1725004257014,-500.0,0.00024657,4]
[336665681,1725004257023,-500.0,0.00024657,4]
[336665682,1725004257032,-500.0,0.00024657,4]
[336665683,1725004257043,-500.0,0.00024657,4]
[336665684,1725004257052,-500.0,0.00024657,4]
[336665685,1725004257062,-500.0,0.00024657,4]
[336665686,1725004257072,-500.0,0.00024657,4]
[336665687,1725004257082,-500.0,0.00024657,4]
[336665688,1725004257091,-500.0,0.00024657,4]
[336665689,1725004257100,-500.0,0.00024657,4]
[336665690,1725004257110,-500.0,0.00024657,4]
[336665691,1725004257119,-500.0,0.00024657,4]
[336665692,1725004257128,-500.0,0.00024657,4]
[336665693,1725004257137,-500.0,0.00024657,4]
[336665694,1725004257147,-500.0,0.00024657,4]
[336665695,1725004257157,-500.0,0.00024657,4]
[336665696,1725004257167,-500.0,0.00024657,4]
[336665697,1725004257176,-500.0,0.00024657,4]
[336665698,1725004257187,-500.0,0.00024657,4]
[336665699,1725004257197,-500.0,0.00024657,4]
[336665700,1725004257208,-500.0,0.00024657,4]
[336665701,1725004257220,-500.0,0.00024657,4]
[336665702,1725004257231,-276.33266815,0.00024657,4]
[336665703,1725004257242,-1027.14,0.00024657,4]
[336665704,1725004257254,-1027.14,0.00024657,4]
[336665705,1725004257265,-1027.14,0.00024657,4]
[336665706,1725004257281,-1027.14,0.00024657,4]
[336665707,1725004257293,-1027.14,0.00024657,4]
[336665708,1725004257306,-500.0,0.00024657,4]
[336665709,1725004257317,-500.0,0.00024657,4]
[336665710,1725004257328,-500.0,0.00024657,4]
[336665711,1725004257339,-500.0,0.00024657,4]
[336665712,1725004257350,-500.0,0.00024657,4]
[336665713,1725004257360,-500.0,0.00024657,4]
[336665714,1725004257370,-500.0,0.00024657,4]
[336665715,1725004257380,-500.0,0.00024657,4]
[336665716,1725004257390,-186.95013057,0.00024657,4]
[336665717,1725004257400,-500.0,0.00024657,4]
[336665718,1725004257410,-500.0,0.00024657,4]
[336665719,1725004257420,-500.0,0.00024657,4]
[336665720,1725004257429,-513.84696781,0.00024657,4]
[336665721,1725004257439,-500.0,0.00024657,4]
[336665722,1725004257450,-507.95527681,0.00024657,4]
[336665723,1725004257459,-500.0,0.00024657,4]
[336665724,1725004257469,-503.15463047,0.00024657,4]
[336665725,1725004257479,-500.0,0.00024657,4]
[336665726,1725004257488,-500.0,0.00024657,4]
[336665727,1725004257499,-500.0,0.00024657,4]
[336665728,1725004257510,-500.0,0.00024657,4]
[336665729,1725004257525,-500.0,0.00024657,4]
[336665730,1725004257536,-500.0,0.00024657,4]
[336665731,1725004257546,-166.17,0.00024657,4]
[336665732,1725004257555,-500.0,0.00024657,4]
[336665733,1725004257565,-500.0,0.00024657,4]
[336665734,1725004257574,-500.0,0.00024657,4]
[336665735,1725004257584,-150.25196376,0.00024657,4]
[336665736,1725004257593,-500.0,0.00024657,4]
[336665737,1725004257602,-500.0,0.00024657,4]
[336665738,1725004257611,-500.0,0.00024657,4]
[336665739,1725004257620,-500.0,0.00024657,4]
[336665740,1725004257629,-321.46698353,0.00024657,4]
[336665741,1725004257639,-500.0,0.00024657,4]
[336665742,1725004257649,-500.0,0.00024657,4]
[336665743,1725004257661,-500.0,0.00024657,4]
[336665744,1725004257670,-500.0,0.00024657,4]
[336665745,1725004257679,-500.0,0.00024657,4]
[336665746,1725004257688,-500.0,0.00024657,4]
[336665747,1725004257697,-307.46442891,0.00024657,4]
[336665748,1725004257706,-500.0,0.00024657,4]
[336665749,1725004257715,-500.0,0.00024657,4]
[336665750,1725004257725,-500.0,0.00024657,4]
[336665751,1725004257734,-500.0,0.00024657,4]
[336665752,1725004257743,-500.0,0.00024657,4]
[336665753,1725004257752,-500.0,0.00024657,4]
[336665754,1725004257761,-500.0,0.00024657,4]
[336665755,1725004257772,-600.95557109,0.00024657,4]
[336665756,1725004257782,-500.0,0.00024657,4]
[336665757,1725004257790,-500.0,0.00024657,4]
[336665758,1725004257799,-500.0,0.00024657,4]
[336665759,1725004257809,-500.0,0.00024657,4]
[336665760,1725004257818,-500.0,0.00024657,4]
[336665761,1725004257828,-500.0,0.00024657,4]
[336665762,1725004257838,-500.0,0.00024657,4]
[336665763,1725004257851,-500.0,0.00024657,4]
[336665764,1725004257860,-547.72641837,0.00024657,4]
[336665765,1725004257870,-500.0,0.00024657,4]
[336665766,1725004257879,-500.0,0.00024657,4]
[336665767,1725004257888,-311.21992283,0.00024657,4]
[336665768,1725004257897,-500.0,0.00024657,4]
[336665769,1725004257906,-500.0,0.00024657,4]
[336665770,1725004257915,-500.0,0.00024657,4]
[336665771,1725004257926,-500.0,0.00024657,4]
[336665772,1725004257937,-500.0,0.00024657,4]
[336665773,1725004257948,-500.0,0.00024657,4]
[336665774,1725004257960,-500.0,0.00024657,4]
[336665775,1725004257970,-500.0,0.00024657,4]
[336665776,1725004257981,-500.0,0.00024657,4]
[336665777,1725004257990,-500.0,0.00024657,4]
[336665778,1725004258000,-500.0,0.00024657,4]
[336665779,1725004258010,-500.0,0.00024657,4]
[336665780,1725004258021,-500.0,0.00024657,4]
[336665781,1725004258031,-348.65552009,0.00024657,4]
[336665782,1725004258040,-500.0,0.00024657,4]
[336665783,1725004258049,-500.0,0.00024657,4]
[336665784,1725004258059,-500.0,0.00024657,4]
[336665785,1725004258068,-500.0,0.00024657,4]
[336665786,1725004258077,-500.0,0.00024657,4]
[336665787,1725004258088,-500.0,0.00024657,4]
[336665788,1725004258098,-537.05417819,0.00024657,4]
[336665789,1725004258107,-500.0,0.00024657,4]
[336665790,1725004258117,-524.79208926,0.00024657,4]
[336665791,1725004258126,-500.0,0.00024657,4]
[336665792,1725004258135,-500.0,0.00024657,4]
[336665793,1725004258144,-207.6719252,0.00024657,4]
[336665794,1725004258154,-500.0,0.00024657,4]
[336665795,1725004258163,-300.69153863,0.00024657,4]
[336665796,1725004258172,-607.70067174,0.00024657,2]
[336665797,1725004258182,-500.0,0.00024657,4]
[336665798,1725004258192,-500.0,0.00024657,4]
[336665799,1725004258201,-500.0,0.00024657,4]
[336665800,1725004258210,-500.0,0.00024657,4]
[336665801,1725004258220,-500.0,0.00024657,4]
[336665802,1725004258229,-500.0,0.00024657,4]
[336665803,1725004258238,-500.0,0.00024657,4]
[336665804,1725004258247,-500.0,0.00024657,4]
[336665805,1725004258257,-500.0,0.00024657,4]
[336665806,1725004258267,-500.0,0.00024657,4]
[336665807,1725004258277,-511.53510376,0.00024657,4]
[336665808,1725004258287,-500.0,0.00024657,4]
[336665809,1725004258296,-538.6,0.00024657,4]
[336665810,1725004258306,-342.06366174,0.00024657,4]
[336665811,1725004258316,-259.26176149,0.00024657,4]
[336665812,1725004258325,-42853.0810608,0.00024657,2]
[336665813,1725004258337,-500.0,0.00024657,4]
[336665814,1725004258348,-500.0,0.00024657,4]
[336665815,1725004258359,-171.95201946,0.00024657,4]
[336665816,1725004258370,-500.0,0.00024672,2]
[336665817,1725004258379,-500.0,0.0002468,2]
[336665818,1725004258389,-500.0,0.00024689,2]
[336665819,1725004258398,-296.98310568,0.00024695,2]
[336665820,1725004258408,-500.0,0.00024698,2]
[336665821,1725004258418,-500.0,0.00024707,2]
[336665822,1725004258427,-500.0,0.00024716,2]
[336665823,1725004258436,-923.961822,0.0002472,4]
[336665824,1725004258446,-862.814066,0.0002472,4]
[336665825,1725004258455,-500.0,0.00024724,2]
[336665826,1725004258465,-4704.15184783,0.00024728,2]
[336665827,1725004258474,-500.0,0.0002473,4]
[336665828,1725004258484,-500.0,0.0002473,4]
[336665829,1725004258494,-500.0,0.0002473,4]
[336665830,1725004258503,-500.0,0.0002473,4]
[336665831,1725004258513,-839.51,0.0002473,4]
[336665832,1725004258524,-500.0,0.0002473,4]
[336665833,1725004258534,-500.0,0.0002473,4]
[336665834,1725004258543,-500.0,0.0002473,4]
[336665835,1725004258553,-500.0,0.0002473,4]
[336665836,1725004258562,-501.48,0.0002473,4]
[336665837,1725004258572,-500.0,0.0002473,4]
[336665838,1725004258581,-633.17,0.0002473,4]
[336665839,1725004258591,-500.0,0.0002473,4]
[336665840,1725004258600,-580.08,0.0002473,4]
[336665841,1725004258611,-500.0,0.0002473,4]
[336665842,1725004258621,-500.0,0.0002473,4]
[336665843,1725004258631,-500.0,0.0002473,4]
[336665844,1725004258641,-500.0,0.0002473,4]
[336665845,1725004258651,-500.0,0.0002473,4]
[336665846,1725004258661,-500.0,0.0002473,4]
[336665847,1725004258671,-500.0,0.0002473,4]
[336665848,1725004258681,-1152.14,0.0002473,4]
[336665849,1725004258690,-500.0,0.0002473,4]
[336665850,1725004258699,-500.0,0.0002473,4]
[336665851,1725004258709,-454.99,0.0002473,4]
[336665852,1725004258719,-500.0,0.0002473,4]
[336665853,1725004258729,-500.0,0.0002473,4]
[336665854,1725004258740,-1091.79,0.0002473,4]
[336665855,1725004258750,-618.13,0.0002473,4]
[336665856,1725004258760,-546.71,0.0002473,4]
[336665857,1725004258771,-750.43,0.0002473,4]
[336665858,1725004258780,-636.45,0.0002473,4]
[336665859,1725004258790,-500.0,0.0002473,4]
[336665860,1725004258801,-500.0,0.0002473,4]
[336665861,1725004258810,-500.0,0.0002473,4]
[336665862,1725004258820,-500.0,0.0002473,4]
[336665863,1725004258830,-500.0,0.0002473,4]
[336665864,1725004258841,-500.0,0.0002473,4]
[336665865,1725004258854,-2551.7,0.0002473,4]
[336665866,1725004258864,-754.69,0.0002473,4]
[336665867,1725004258874,-500.0,0.0002473,4]
[336665868,1725004258885,-500.0,0.0002473,4]
[336665869,1725004258893,-500.0,0.0002473,4]
[336665870,1725004258903,-500.0,0.0002473,4]
[336665871,1725004258912,-500.0,0.0002473,4]
[336665872,1725004258923,-500.0,0.0002473,4]
[336665873,1725004258933,-500.0,0.00024731,2]
[336665874,1725004258943,-500.0,0.00024733,2]
[336665875,1725004258953,-500.0,0.00024734,2]
[336665876,1725004258963,-500.0,0.0002474,2]
[336665877,1725004258972,-500.0,0.00024742,2]
[336665878,1725004258982,-488.08,0.0002475,30]
[336665879,1725004258991,-296.98310568,0.00024763,2]
[336665880,1725004259000,-500.0,0.00024767,2]
[336665881,1725004259010,-500.0,0.000248,2]
[336665882,1725004259021,-636.65,0.00024801,4]
[336665883,1725004259031,-1027.14,0.00024801,4]
[336665884,1725004259042,-500.0,0.00024801,4]
[336665885,1725004259051,-1198.39215199,0.00024802,2]
[336665886,1725004259062,-923.961822,0.00024822,4]
[336665887,1725004259073,-862.814066,0.00024822,4]
[336665888,1725004259082,-923.961822,0.00024826,4]
[336665889,1725004259092,-862.814066,0.00024826,4]
[336665890,1725004259102,-169.62580586,0.00024829,2]
[336665891,1725004259111,-296.98310568,0.00024831,2]
[336665892,1725004259121,-1200.0,0.00024853,2]
[336665893,1725004259131,-2000.0,0.000249,2]
[336665894,1725004259142,-3000.0,0.000249,2]
[336665895,1725004259152,-400.37,0.00024911,4]
[336665896,1725004259162,-500.0,0.00024911,4]
[336665897,1725004259172,-923.961822,0.00024917,4]
[336665898,1725004259183,-862.814066,0.00024917,4]
[336665899,1725004259192,-923.961822,0.00024918,4]
[336665900,1725004259203,-862.814066,0.00024918,4]
[336665901,1725004259212,-923.961822,0.00024919,4]
[336665902,1725004259222,-862.814066,0.00024919,4]
[336665903,1725004259232,-519.62,0.00024926,4]
[336665904,1725004259243,-500.0,0.00024926,4]
[336665905,1725004259252,-510.34,0.00024926,4]
[336665906,1725004259262,-500.0,0.00024926,4]
[336665907,1725004259274,-500.0,0.00024926,4]
[336665908,1725004259283,-500.0,0.00024926,4]
[336665909,1725004259293,-220.42,0.00024926,4]
[336665910,1725004259303,-500.0,0.00024926,4]
[336665911,1725004259312,-500.0,0.00024926,4]
[336665912,1725004259321,-190.14,0.00024926,4]
[336665913,1725004259330,-500.0,0.00024926,4]
[336665914,1725004259339,-500.0,0.00024926,4]
[336665915,1725004259434,-500.0,0.00024926,4]
[336665916,1725004259443,-500.0,0.00024926,4]
[336665917,1725004259452,-500.0,0.00024926,4]
[336665918,1725004259461,-500.0,0.00024926,4]
[336665919,1725004259470,-500.0,0.00024926,4]
[336665920,1725004259480,-500.0,0.00024926,4]
[336665921,1725004259489,-500.0,0.00024926,4]
[336665922,1725004259498,-337.99,0.00024926,4]
[336665923,1725004259506,-500.0,0.00024926,4]
[336665924,1725004259515,-500.0,0.00024926,4]
[336665925,1725004259525,-514.63,0.00024927,4]
[336665926,1725004259534,-514.63,0.00024927,4]
[336665927,1725004259543,-514.63,0.00024927,4]
[336665928,1725004259552,-514.63,0.00024927,4]
[336665929,1725004259561,-514.66,0.00024927,4]
[336665930,1725004259570,-910.37,0.00024927,4]
[336665931,1725004259579,-910.37,0.00024927,4]
[336665932,1725004259588,-910.37,0.00024927,4]
[336665933,1725004259598,-910.37,0.00024927,4]
[336665934,1725004259607,-910.53,0.00024927,4]
[336665935,1725004259616,-1120.51,0.00024927,4]
[336665936,1725004259625,-1120.51,0.00024927,4]
[336665937,1725004259634,-1120.51,0.00024927,4]
[336665938,1725004259643,-1120.51,0.00024927,4]
[336665939,1725004259652,-1120.56,0.00024927,4]
[336665940,1725004259661,-4088.24,0.00024927,4]
[336665941,1725004259669,-4088.24,0.00024927,4]
[336665942,1725004259678,-4088.24,0.00024927,4]
[336665943,1725004259687,-4088.24,0.00024927,4]
[336665944,1725004259696,-4088.27,0.00024927,4]
[336665945,1725004259706,-552.98,0.00024927,4]
[336665946,1725004259714,-704.3,0.00024927,4]
[336665947,1725004259723,-704.3,0.00024927,4]
[336665948,1725004259732,-704.3,0.00024927,4]
[336665949,1725004259741,-704.3,0.00024927,4]
[336665950,1725004259750,-704.50809936,0.00024927,4]
[336665951,1725004259759,-778.34,0.00024927,4]
[336665952,1725004259767,-778.34,0.00024927,4]
[336665953,1725004259776,-778.34,0.00024927,4]
[336665954,1725004259785,-778.34,0.00024927,4]
[336665955,1725004259794,-778.55128139,0.00024927,4]
[336665956,1725004259803,-12024.37,0.00024927,4]
[336665957,1725004259812,-12024.37,0.00024927,4]
[336665958,1725004259820,-12024.37,0.00024927,4]
[336665959,1725004259829,-12024.37,0.00024927,4]
[336665960,1725004259838,-12024.41281138,0.00024927,4]
[336665961,1725004259851,-842.82,0.00024927,4]
[336665962,1725004259860,-842.82,0.00024927,4]
[336665963,1725004259868,-842.82,0.00024927,4]
[336665964,1725004259878,-842.82,0.00024927,4]
[336665965,1725004259887,-842.93,0.00024927,4]
[336665966,1725004259895,-500.0,0.00024927,4]
[336665967,1725004259904,-500.0,0.00024927,4]
[336665968,1725004259913,-500.0,0.00024927,4]
[336665969,1725004259923,-500.0,0.00024927,4]
[336665970,1725004259933,-500.0,0.00024927,4]
[336665971,1725004259942,-500.0,0.00024927,4]
[336665972,1725004259950,-500.0,0.00024927,4]
[336665973,1725004259959,-500.0,0.00024927,4]
[336665974,1725004259968,-500.0,0.00024927,4]
[336665975,1725004259977,-500.0,0.00024927,4]
[336665976,1725004259986,-500.0,0.00024927,4]
[336665977,1725004259994,-500.0,0.00024927,4]
[336665978,1725004260004,-500.0,0.00024927,4]
[336665979,1725004260013,-500.0,0.00024927,4]
[336665980,1725004260023,-500.0,0.00024927,4]
[336665981,1725004260032,-500.0,0.00024927,4]
[336665982,1725004260042,-170.65146635,0.00024927,4]
[336665983,1725004260052,-500.0,0.00024927,4]
[336665984,1725004260062,-500.0,0.00024927,4]
[336665985,1725004260072,-500.0,0.00024927,4]
[336665986,1725004260082,-500.0,0.00024927,4]
[336665987,1725004260091,-500.0,0.00024927,4]
[336665988,1725004260099,-839.51,0.00024927,4]
[336665989,1725004260108,-500.0,0.00024927,4]
[336665990,1725004260117,-500.0,0.00024927,4]
[336665991,1725004260127,-500.0,0.00024927,4]
[336665992,1725004260136,-500.0,0.00024927,4]
[336665993,1725004260145,-500.0,0.00024927,4]
[336665994,1725004260154,-500.0,0.00024927,4]
[336665995,1725004260164,-559.36,0.00024927,4]
[336665996,1725004260174,-3164.88,0.00024927,4]
[336665997,1725004260184,-500.0,0.00024927,4]
[336665998,1725004260194,-3273.30045445,0.00024927,4]
[336665999,1725004260231,-334.66954555,0.00024927,4]
[336666000,1725004260240,-89.28627117,0.00024927,4]
[336666001,1725004260254,-410.71372883,0.00024927,4]
[336666002,1725004260264,-500.0,0.00024927,4]
[336666003,1725004260274,-500.0,0.00024927,4]
[336666004,1725004260284,-500.0,0.00024927,4]
[336666005,1725004260293,-501.48,0.00024927,4]
[336666006,1725004260303,-500.0,0.00024927,4]
[336666007,1725004260312,-500.0,0.00024927,4]
[336666008,1725004260321,-500.0,0.00024927,4]
[336666009,1725004260331,-633.17,0.00024927,4]
[336666010,1725004260342,-580.08,0.00024927,4]
[336666011,1725004260352,-194.24,0.00024927,4]
[336666012,1725004260363,-500.0,0.00024927,4]
[336666013,1725004260372,-500.0,0.00024927,4]
[336666014,1725004260381,-500.0,0.00024927,4]
[336666015,1725004260391,-500.0,0.00024927,4]
[336666016,1725004260400,-500.0,0.00024927,4]
[336666017,1725004260410,-482.2,0.00024927,4]
[336666018,1725004260420,-500.0,0.00024927,4]
[336666019,1725004260429,-1152.14,0.00024927,4]
[336666020,1725004260439,-500.0,0.00024927,4]
[336666021,1725004260448,-500.0,0.00024927,4]
[336666022,1725004260458,-500.0,0.00024927,4]
[336666023,1725004260468,-500.0,0.00024927,4]
[336666024,1725004260477,-1091.79,0.00024927,4]
[336666025,1725004260486,-618.13,0.00024927,4]
[336666026,1725004260495,-546.71,0.00024927,4]
[336666027,1725004260503,-750.43,0.00024927,4]
[336666028,1725004260512,-500.0,0.00024927,4]
[336666029,1725004260522,-500.0,0.00024927,4]
[336666030,1725004260531,-500.0,0.00024927,4]
[336666031,1725004260539,-500.0,0.00024927,4]
[336666032,1725004260550,-500.0,0.00024927,4]
[336666033,1725004260560,-480.24,0.00024927,4]
[336666034,1725004260570,-500.0,0.00024927,4]
[336666035,1725004260580,-2551.7,0.00024927,4]
[336666036,1725004260589,-649.79412397,0.00024927,4]
[336666037,1725004260600,-104.89587603,0.00024927,4]
[336666038,1725004260609,-500.0,0.00024927,4]
[336666039,1725004260619,-500.0,0.00024927,4]
[336666040,1725004260630,-636.65,0.00024927,4]
[336666041,1725004260641,-636.65,0.00024927,4]
[336666042,1725004260652,-500.0,0.00024927,4]
[336666043,1725004260662,-287.14,0.00024927,4]
[336666044,1725004260671,-1027.14,0.00024927,4]
[336666045,1725004260679,-1027.14,0.00024927,4]
[336666046,1725004260688,-500.0,0.00024927,4]
[336666047,1725004260697,-500.0,0.00024927,4]
[336666048,1725004260706,-500.0,0.00024927,4]
[336666049,1725004260716,-500.0,0.00024927,4]
[336666050,1725004260725,-2500.0,0.00024927,5]
[336666051,1725004260734,-500.0,0.00024928,3]
[336666052,1725004260743,-240.77010537,0.00024928,4]
[336666053,1725004260752,-2295.6140186,0.00024928,4]
[336666054,1725004261951,-1257.99548884,0.00024928,4]
[336666055,1725004261963,-263.13892812,0.00024928,4]
[336666056,1725004261974,-500.0,0.00024928,4]
[336666057,1725004261985,-590.0,0.00024928,4]
[336666058,1725004261996,-1861.24156444,0.00024928,4]
[336666059,1725004262005,-6767.99,0.00024928,4]
[336666060,1725004262015,-6767.99,0.00024928,4]
[336666061,1725004262025,-6767.99,0.00024928,4]
[336666062,1725004262034,-6767.99,0.00024928,4]
[336666063,1725004262045,-6767.99,0.00024928,4]
[336666064,1725004262054,-6768.05133902,0.00024928,4]
[336666065,1725004262064,-1272.28,0.00024928,4]
[336666066,1725004262073,-1272.28,0.00024928,4]
[336666067,1725004262083,-1272.28,0.00024928,4]
[336666068,1725004262093,-1272.28,0.00024928,4]
[336666069,1725004262102,-1272.28,0.00024928,4]
[336666070,1725004262111,-1272.28,0.00024928,4]
[336666071,1725004262120,-1272.31,0.00024928,4]
[336666072,1725004262129,-608.19,0.00024928,4]
[336666073,1725004262138,-608.19,0.00024928,4]
[336666074,1725004262147,-608.19,0.00024928,4]
[336666075,1725004262157,-608.19,0.00024928,4]
[336666076,1725004262167,-608.19,0.00024928,4]
[336666077,1725004262176,-608.19,0.00024928,4]
[336666078,1725004262185,-608.42,0.00024928,4]
[336666079,1725004262195,-519.54,0.00024928,4]
[336666080,1725004262204,-519.54,0.00024928,4]
[336666081,1725004262214,-519.54,0.00024928,4]
[336666082,1725004262223,-519.54,0.00024928,4]
[336666083,1725004262232,-519.54,0.00024928,4]
[336666084,1725004262241,-519.72346771,0.00024928,4]
[336666085,1725004262250,-420.78362886,0.00024928,4]
[336666086,1725004262263,-357.69482547,0.00024928,4]
[336666087,1725004262279,-1108.62154567,0.00024928,4]
[336666088,1725004262288,-1887.1,0.00024928,4]
[336666089,1725004262297,-1887.1,0.00024928,4]
[336666090,1725004262306,-1887.1,0.00024928,4]
[336666091,1725004262315,-1887.1,0.00024928,4]
[336666092,1725004262325,-1887.1,0.00024928,4]
[336666093,1725004262334,-1887.19000001,0.00024928,4]
[336666094,1725004262343,-625.92429817,0.00024928,4]
[336666095,1725004262355,-71.37570183,0.00024928,4]
[336666096,1725004262364,-697.3,0.00024928,4]
[336666097,1725004262373,-275.40807465,0.00024928,4]
[336666098,1725004262384,-421.89192535,0.00024928,4]
[336666099,1725004262393,-697.3,0.00024928,4]
[336666100,1725004262402,-697.3,0.00024928,4]
[336666101,1725004262411,-500.0,0.00024928,4]
[336666102,1725004262420,-697.3,0.00024928,4]
[336666103,1725004262429,-500.0,0.00024928,4]
[336666104,1725004262438,-697.5,0.00024928,4]
[336666105,1725004262447,-478.29,0.00024928,4]
[336666106,1725004262456,-979.26,0.00024928,4]
[336666107,1725004262465,-297.11807464,0.00024928,4]
[336666108,1725004262828,-507.53028692,0.00024928,4]
[336666109,1725004262906,-500.0,0.00024657,4]
[336666110,1725004262915,-500.0,0.00024657,4]
[336666111,1725004262924,-500.0,0.00024657,4]
[336666112,1725004262934,-215.67320944,0.00024657,4]
[336666113,1725004262945,-284.32679056,0.00024657,4]
[336666114,1725004262955,-500.0,0.00024657,4]
[336666115,1725004262964,-174.61163844,0.00024928,4]
[336666116,1725004262973,-979.26,0.00024928,4]
[336666117,1725004262982,-979.26,0.00024928,4]
[336666118,1725004262991,-979.26,0.00024928,4]
[336666119,1725004263000,-979.26,0.00024928,4]
[336666120,1725004263010,-979.41,0.00024928,4]
[336666121,1725004263019,-692.85,0.00024928,4]
[336666122,1725004263028,-692.85,0.00024928,4]
[336666123,1725004263037,-692.85,0.00024928,4]
[336666124,1725004263046,-466.061571,0.00024928,4]
[336666125,1725004263058,-226.788429,0.00024928,4]
[336666126,1725004263069,-82.49956893,0.00024928,4]
[336666127,1725004263079,-610.35043107,0.00024928,4]
[336666128,1725004263089,-98.04267884,0.00024928,4]
[336666129,1725004263101,-594.80732116,0.00024928,4]
[336666130,1725004263111,-692.9,0.00024928,4]
[336666131,1725004263120,-1509.39,0.00024928,4]
[336666132,1725004263130,-1509.39,0.00024928,4]
[336666133,1725004263140,-1509.39,0.00024928,4]
[336666134,1725004263149,-1509.39,0.00024928,4]
[336666135,1725004263159,-1509.39,0.00024928,4]
[336666136,1725004263169,-1509.39,0.00024928,4]
[336666137,1725004263179,-1509.52871664,0.00024928,4]
[336666138,1725004263188,-1779.85,0.00024928,4]
[336666139,1725004263198,-1040.5739622,0.00024928,4]
[336666140,1725004297901,164.65,0.00010959,2]
[336666142,1725004504368,152.9812955,0.00024,120]
[336666143,1725004753728,1295.17764358,0.00022,60]